[Event "Aeroflot Open 2013"]
[Site "Moscow"]
[Date "2013.02.12"]
[Round "2.4"]
[White "Gabuzyan, Hovhannes"]
[Black "Jobava, Baadur"]
[Result "1/2-1/2"]
[ECO "A04"]
[WhiteElo "2517"]
[BlackElo "2704"]
[Annotator "Robot 4"]
[PlyCount "111"]
[EventDate "2013.??.??"]
[EventCountry "RUS"]
[TimeControl "900+10"]

1. Nf3 {[%emt 0:00:00]} e6 {[%emt 0:00:05]} 2. g3 {[%emt 0:00:00]} b6 {[%emt 0:
00:05]} 3. Bg2 {[%emt 0:00:00]} Bb7 {[%emt 0:00:00]} 4. O-O {[%emt 0:00:01]} d5
{[%emt 0:00:32]} 5. c4 {[%emt 0:00:05]} Ne7 {[%emt 0:00:06]} 6. d4 {[%emt 0:00:
17]} Nbc6 {[%emt 0:00:06]} 7. Nbd2 {[%emt 0:00:13]} Qd7 {[%emt 0:00:08]} 8. e4
{[%emt 0:00:22]} dxe4 {[%emt 0:00:20]} 9. Nxe4 {[%emt 0:00:02]} O-O-O {[%emt 0:
00:01]} 10. b3 {[%emt 0:01:54]} Nf5 {[%emt 0:01:15]} 11. d5 {[%emt 0:00:13]}
exd5 {[%emt 0:00:52]} 12. cxd5 {[%emt 0:00:02]} f6 {[%emt 0:01:03]} 13. dxc6 {
[%emt 0:02:25]} Qxd1 {[%emt 0:00:01]} 14. cxb7+ {[%emt 0:00:12]} Kb8 {[%emt 0:
00:01]} 15. Bf4 {[%emt 0:02:21]} Qd3 {[%emt 0:02:04]} 16. Rac1 {[%emt 0:00:16]}
Rd7 {[%emt 0:00:43]} 17. Neg5 {[%emt 0:03:37]} Ba3 {[%emt 0:03:47]} 18. Ne6 {
[%emt 0:00:10]} Bxc1 {[%emt 0:00:04]} 19. Rxc1 {[%emt 0:00:02]} Qe2 {[%emt 0:
04:41]} 20. Nfd4 {[%emt 0:02:04]} Nxd4 {[%emt 0:00:17]} 21. Nxd4 {[%emt 0:00:
02]} Qb2 {[%emt 0:00:53]} 22. Nc6+ {[%emt 0:00:55]} Kxb7 {[%emt 0:00:10]} 23.
Ne5+ {[%emt 0:00:01]} Kc8 {[%emt 0:00:00]} 24. Nxd7 {[%emt 0:00:37]} Kxd7 {
[%emt 0:00:00]} 25. Bh3+ {[%emt 0:00:03]} Kd8 {[%emt 0:00:29]} 26. Rxc7 {[%emt
0:00:31]} Qb1+ {[%emt 0:00:32]} 27. Rc1 {[%emt 0:00:04]} Qxa2 {[%emt 0:00:15]}
28. Rc8+ {[%emt 0:01:07]} Ke7 {[%emt 0:00:03]} 29. Rxh8 {[%emt 0:00:02]} Qb1+ {
[%emt 0:00:00]} 30. Bf1 {[%emt 0:00:04]} a5 {[%emt 0:00:10]} 31. Rb8 {[%emt 0:
00:16]} Qxb3 {[%emt 0:00:08]} 32. Be3 {[%emt 0:00:03]} Kf7 {[%emt 0:00:19]} 33.
Rxb6 {[%emt 0:00:16]} Qd1 {[%emt 0:00:01]} 34. Ra6 {[%emt 0:00:17]} a4 {[%emt
0:00:02]} 35. h4 {[%emt 0:00:03]} Kg6 {[%emt 0:00:07]} 36. Kg2 {[%emt 0:00:09]}
Qb3 {[%emt 0:00:04]} 37. Be2 {[%emt 0:00:53]} a3 {[%emt 0:00:55]} 38. h5+ {
[%emt 0:00:26]} Kf5 {[%emt 0:00:00]} 39. h6 {[%emt 0:00:00]} gxh6 {[%emt 0:00:
06]} 40. Bf3 {[%emt 0:00:09]} Qb2 {[%emt 0:00:16]} 41. Bd5 {[%emt 0:00:38]} Qb5
{[%emt 0:00:07]} 42. Be6+ {[%emt 0:00:01]} Ke5 {[%emt 0:00:26]} 43. Rb6 {[%emt
0:00:06]} Qa4 {[%emt 0:00:06]} 44. Bb3 {[%emt 0:00:14]} Qa8+ {[%emt 0:00:03]}
45. Kh2 {[%emt 0:00:49]} a2 {[%emt 0:00:01]} 46. Re6+ {[%emt 0:00:11]} Kf5 {
[%emt 0:00:01]} 47. Bd4 {[%emt 0:00:04]} a1=Q {[%emt 0:00:40]} 48. Rxf6+ {
[%emt 0:00:08]} Kg5 {[%emt 0:00:15]} 49. Bxa1 {[%emt 0:00:17]} Qxa1 {[%emt 0:
00:00]} 50. Rf4 {[%emt 0:00:07]} h5 {[%emt 0:00:01]} 51. Bd5 {[%emt 0:00:04]}
Qb2 {[%emt 0:00:05]} 52. Bg2 {[%emt 0:00:01]} h6 {[%emt 0:00:01]} 53. Kg1 {
[%emt 0:00:04]} Qc1+ {[%emt 0:00:02]} 54. Kh2 {[%emt 0:00:00]} Qe1 {[%emt 0:00:
01]} 55. Be4 {[%emt 0:00:09]} h4 {[%emt 0:00:01]} 56. Rxh4 {[%emt 0:00:04]}
1/2-1/2

[Event "Aeroflot Open 2013"]
[Site "Moscow"]
[Date "2013.02.12"]
[Round "1.4"]
[White "Jobava, Baadur"]
[Black "Kalugin, Sergey G"]
[Result "1-0"]
[ECO "B23"]
[WhiteElo "2704"]
[BlackElo "2377"]
[Annotator "Robot 4"]
[PlyCount "87"]
[EventDate "2013.??.??"]
[EventCountry "RUS"]
[TimeControl "900+10"]

1. e4 {[%emt 0:00:01]} c5 {[%emt 0:00:09]} 2. Nc3 {[%emt 0:00:09]} Nc6 {[%emt
0:00:02]} 3. Nge2 {[%emt 0:00:06]} e5 {[%emt 0:00:47]} 4. Nd5 {[%emt 0:00:12]}
d6 {[%emt 0:00:11]} 5. Nec3 {[%emt 0:00:04]} a6 {[%emt 0:01:28]} 6. a4 {[%emt
0:00:15]} Nge7 {[%emt 0:02:29]} 7. Bc4 {[%emt 0:00:16]} Nxd5 {[%emt 0:00:12]}
8. Nxd5 {[%emt 0:00:08]} Be6 {[%emt 0:00:18]} 9. d3 {[%emt 0:00:19]} g6 {[%emt
0:00:41]} 10. h4 {[%emt 0:01:21]} Bxd5 {[%emt 0:01:59]} 11. Bxd5 {[%emt 0:00:
03]} h5 {[%emt 0:00:05]} 12. c3 {[%emt 0:00:22]} Bh6 {[%emt 0:00:31]} 13. Bxh6
{[%emt 0:01:13]} Rxh6 {[%emt 0:00:01]} 14. Rh3 {[%emt 0:00:08]} Rh7 {[%emt 0:
04:15]} 15. Ra3 {[%emt 0:00:18]} Qd7 {[%emt 0:01:10]} 16. Rf3 {[%emt 0:01:41]}
Ne7 {[%emt 0:00:25]} 17. Qb3 {[%emt 0:01:06]} Nxd5 {[%emt 0:00:02]} 18. Qxd5 {
[%emt 0:00:01]} Rc8 {[%emt 0:00:14]} 19. Rb3 {[%emt 0:00:55]} Rc6 {[%emt 0:00:
11]} 20. a5 {[%emt 0:00:19]} Rg7 {[%emt 0:01:18]} 21. Kd2 {[%emt 0:00:43]} Ke7
{[%emt 0:00:07]} 22. d4 {[%emt 0:00:18]} cxd4 {[%emt 0:01:11]} 23. cxd4 {[%emt
0:00:03]} Qc7 {[%emt 0:00:27]} 24. Rfc3 {[%emt 0:00:02]} exd4 {[%emt 0:00:32]}
25. Qxd4 {[%emt 0:00:04]} f6 {[%emt 0:00:14]} 26. Qa7 {[%emt 0:00:24]} Rxc3 {
[%emt 0:00:13]} 27. Rxb7 {[%emt 0:01:58]} Rc2+ {[%emt 0:00:11]} 28. Kd3 {[%emt
0:00:19]} Ke6 {[%emt 0:00:11]} 29. Rxc7 {[%emt 0:00:12]} Rgxc7 {[%emt 0:00:12]}
30. Qb8 {[%emt 0:00:11]} Rc1 {[%emt 0:00:12]} 31. Qe8+ {[%emt 0:00:19]} Re7 {
[%emt 0:00:11]} 32. Qxg6 {[%emt 0:00:13]} Rd1+ {[%emt 0:00:11]} 33. Ke3 {[%emt
0:00:38]} Ra1 {[%emt 0:00:10]} 34. Qxh5 {[%emt 0:00:18]} Kd7 {[%emt 0:00:10]}
35. Qf5+ {[%emt 0:00:14]} Kc7 {[%emt 0:00:10]} 36. f3 {[%emt 0:00:15]} Re5 {
[%emt 0:00:10]} 37. Qxf6 {[%emt 0:00:10]} Raxa5 {[%emt 0:00:10]} 38. g4 {[%emt
0:00:16]} Rab5 {[%emt 0:00:10]} 39. h5 {[%emt 0:00:18]} Rb3+ {[%emt 0:00:10]}
40. Kf4 {[%emt 0:00:13]} Rxb2 {[%emt 0:00:10]} 41. h6 {[%emt 0:00:11]} Rh2 {
[%emt 0:00:10]} 42. Qf7+ {[%emt 0:00:22]} Kb6 {[%emt 0:00:10]} 43. h7 {[%emt 0:
00:11]} a5 {[%emt 0:00:10]} 44. Qf8 1-0

[Event "Aeroflot Open 2013"]
[Site "Moscow"]
[Date "2013.02.12"]
[Round "2.1"]
[White "Kamsky, Gata"]
[Black "Kotanjian, Tigran"]
[Result "1-0"]
[ECO "B80"]
[WhiteElo "2740"]
[BlackElo "2526"]
[Annotator "Robot 4"]
[PlyCount "57"]
[EventDate "2013.??.??"]
[EventCountry "RUS"]
[TimeControl "900+10"]

1. e4 {[%emt 0:00:00]} c5 {[%emt 0:00:00]} 2. Nf3 {[%emt 0:00:00]} d6 {[%emt 0:
00:00]} 3. d4 {[%emt 0:00:00]} cxd4 {[%emt 0:00:00]} 4. Nxd4 {[%emt 0:00:01]}
Nf6 {[%emt 0:00:00]} 5. Nc3 {[%emt 0:00:01]} a6 {[%emt 0:00:01]} 6. Be3 {[%emt
0:00:02]} e6 {[%emt 0:00:06]} 7. a4 {[%emt 0:00:29]} Qc7 {[%emt 0:00:02]} 8. a5
{[%emt 0:00:41]} d5 {[%emt 0:00:03]} 9. exd5 {[%emt 0:02:14]} Bb4 {[%emt 0:00:
03]} 10. Bd2 {[%emt 0:00:12]} exd5 {[%emt 0:05:10]} 11. Bd3 {[%emt 0:00:05]}
O-O {[%emt 0:00:05]} 12. Nce2 {[%emt 0:02:13]} Bd6 {[%emt 0:00:39]} 13. h3 {
[%emt 0:00:23]} Nc6 {[%emt 0:00:06]} 14. O-O {[%emt 0:04:07]} Re8 {[%emt 0:01:
15]} 15. Nf3 {[%emt 0:00:45]} h6 {[%emt 0:00:57]} 16. Ned4 {[%emt 0:00:25]} Ne4
{[%emt 0:00:09]} 17. Re1 {[%emt 0:01:31]} Bd7 {[%emt 0:00:48]} 18. Nxc6 {[%emt
0:00:02]} Bxc6 {[%emt 0:00:06]} 19. Be3 {[%emt 0:00:05]} Bb4 {[%emt 0:00:39]}
20. Bb6 {[%emt 0:00:07]} Qf4 {[%emt 0:00:02]} 21. c3 {[%emt 0:00:07]} Bd6 {
[%emt 0:00:03]} 22. Be3 {[%emt 0:00:04]} Qf6 {[%emt 0:00:36]} 23. Bd4 {[%emt 0:
00:10]} Qd8 {[%emt 0:00:41]} 24. Bb6 {[%emt 0:00:35]} Qd7 {[%emt 0:00:43]} 25.
Nd4 {[%emt 0:00:15]} Be5 {[%emt 0:00:58]} 26. Qg4 {[%emt 0:00:11]} Qd6 {[%emt
0:00:45]} 27. Nf5 {[%emt 0:00:29]} Bh2+ {[%emt 0:00:22]} 28. Kh1 {[%emt 0:00:
19]} Qe5 {[%emt 0:00:56]} 29. Bxe4 {[%emt 0:00:00]} 1-0

[Event "Aeroflot Open 2013"]
[Site "Moscow"]
[Date "2013.02.12"]
[Round "2.5"]
[White "Kasimdzhanov, Rustam"]
[Black "Gorovets, Andrey"]
[Result "1-0"]
[ECO "C08"]
[WhiteElo "2709"]
[BlackElo "2481"]
[Annotator "Robot 4"]
[PlyCount "107"]
[EventDate "2013.??.??"]
[EventCountry "RUS"]
[TimeControl "900+10"]

1. e4 {[%emt 0:00:00]} e6 {[%emt 0:00:00]} 2. d4 {[%emt 0:00:05]} d5 {[%emt 0:
00:00]} 3. Nd2 {[%emt 0:00:00]} c5 {[%emt 0:00:11]} 4. exd5 {[%emt 0:00:00]}
exd5 {[%emt 0:00:00]} 5. Ngf3 {[%emt 0:00:09]} a6 {[%emt 0:00:02]} 6. Be2 {
[%emt 0:00:33]} Nf6 {[%emt 0:00:09]} 7. O-O {[%emt 0:00:04]} Be7 {[%emt 0:00:
02]} 8. dxc5 {[%emt 0:00:10]} Bxc5 {[%emt 0:00:02]} 9. Nb3 {[%emt 0:01:00]} Ba7
{[%emt 0:00:06]} 10. c4 {[%emt 0:00:20]} O-O {[%emt 0:00:22]} 11. c5 {[%emt 0:
00:16]} Ne4 {[%emt 0:01:56]} 12. Be3 {[%emt 0:00:08]} Nc6 {[%emt 0:01:58]} 13.
Rc1 {[%emt 0:00:10]} Be6 {[%emt 0:01:13]} 14. Nbd4 {[%emt 0:00:49]} Qe7 {[%emt
0:01:04]} 15. Nxc6 {[%emt 0:00:55]} bxc6 {[%emt 0:00:01]} 16. b4 {[%emt 0:00:
11]} a5 {[%emt 0:00:24]} 17. a3 {[%emt 0:00:22]} axb4 {[%emt 0:00:13]} 18. axb4
{[%emt 0:00:02]} Bb8 {[%emt 0:01:28]} 19. Nd4 {[%emt 0:00:37]} Bd7 {[%emt 0:00:
41]} 20. b5 {[%emt 0:01:31]} cxb5 {[%emt 0:00:12]} 21. c6 {[%emt 0:00:03]} Be6
{[%emt 0:00:17]} 22. Nxb5 {[%emt 0:00:11]} Rc8 {[%emt 0:01:08]} 23. Qd4 {[%emt
0:01:26]} Nd6 {[%emt 0:03:22]} 24. Qb4 {[%emt 0:02:42]} Qd8 {[%emt 0:01:28]}
25. c7 {[%emt 0:02:43]} Bxc7 {[%emt 0:00:11]} 26. Rxc7 {[%emt 0:00:04]} Rxc7 {
[%emt 0:00:13]} 27. Nxd6 {[%emt 0:00:42]} Qe7 {[%emt 0:01:09]} 28. Qf4 {[%emt
0:00:20]} Rc2 {[%emt 0:00:31]} 29. Bf3 {[%emt 0:01:13]} Qd7 {[%emt 0:00:39]}
30. Qg3 {[%emt 0:02:19]} Ra6 {[%emt 0:00:23]} 31. Bf4 {[%emt 0:00:03]} Kf8 {
[%emt 0:00:16]} 32. h4 {[%emt 0:00:13]} h6 {[%emt 0:00:02]} 33. Rd1 {[%emt 0:
00:04]} Rca2 {[%emt 0:00:12]} 34. Kh2 {[%emt 0:00:04]} R2a5 {[%emt 0:00:10]}
35. Nc4 {[%emt 0:00:05]} Ra4 {[%emt 0:00:11]} 36. Ne5 {[%emt 0:00:21]} Qb5 {
[%emt 0:00:19]} 37. Be3 {[%emt 0:00:30]} Qb2 {[%emt 0:00:13]} 38. Nd3 {[%emt 0:
00:05]} Qf6 {[%emt 0:00:02]} 39. Nc5 {[%emt 0:00:25]} Rxh4+ {[%emt 0:00:09]}
40. Kg1 {[%emt 0:00:02]} Ra8 {[%emt 0:00:02]} 41. Bxd5 {[%emt 0:00:30]} Rd8 {
[%emt 0:00:16]} 42. Nxe6+ {[%emt 0:00:03]} fxe6 {[%emt 0:00:02]} 43. Bc5+ {
[%emt 0:00:04]} Kg8 {[%emt 0:00:37]} 44. Bxe6+ {[%emt 0:00:09]} Kh8 {[%emt 0:
00:07]} 45. Rxd8+ {[%emt 0:00:03]} Qxd8 {[%emt 0:00:00]} 46. Bd6 {[%emt 0:00:
18]} Rh5 {[%emt 0:00:11]} 47. Bh3 {[%emt 0:00:21]} Rd5 {[%emt 0:00:10]} 48. Be5
{[%emt 0:00:20]} Qe7 {[%emt 0:00:05]} 49. f4 {[%emt 0:00:00]} Qf7 {[%emt 0:00:
16]} 50. Kh2 {[%emt 0:00:04]} Rd8 {[%emt 0:00:12]} 51. Qh4 {[%emt 0:00:03]} Re8
{[%emt 0:00:12]} 52. Qxh6+ {[%emt 0:00:13]} Kg8 {[%emt 0:00:01]} 53. Qg5 {
[%emt 0:00:00]} Rf8 {[%emt 0:00:07]} 54. Be6 {[%emt 0:00:00]} 1-0

[Event "Aeroflot Open 2013"]
[Site "Moscow"]
[Date "2013.02.12"]
[Round "1.8"]
[White "Le, Quang Liem"]
[Black "Pasiev, Rakhim"]
[Result "1-0"]
[ECO "D40"]
[WhiteElo "2705"]
[BlackElo "2406"]
[Annotator "Robot 4"]
[PlyCount "53"]
[EventDate "2013.??.??"]
[EventCountry "RUS"]
[TimeControl "900+10"]

1. Nf3 {[%emt 0:00:00]} c5 {[%emt 0:00:00]} 2. c4 {[%emt 0:00:05]} Nc6 {[%emt
0:00:00]} 3. e3 {[%emt 0:00:00]} e6 {[%emt 0:00:23]} 4. d4 {[%emt 0:00:03]}
cxd4 {[%emt 0:00:02]} 5. exd4 {[%emt 0:00:01]} d5 {[%emt 0:00:08]} 6. Nc3 {
[%emt 0:00:04]} Nf6 {[%emt 0:00:14]} 7. a3 {[%emt 0:00:06]} h6 {[%emt 0:00:07]}
8. Be3 {[%emt 0:01:27]} Be7 {[%emt 0:00:23]} 9. Rc1 {[%emt 0:00:33]} dxc4 {
[%emt 0:00:27]} 10. Bxc4 {[%emt 0:00:04]} Nd5 {[%emt 0:00:05]} 11. O-O {[%emt
0:00:27]} O-O {[%emt 0:01:08]} 12. Ba2 {[%emt 0:01:43]} Bd6 {[%emt 0:00:39]}
13. Nxd5 {[%emt 0:00:26]} exd5 {[%emt 0:00:03]} 14. Qb3 {[%emt 0:00:12]} Ne7 {
[%emt 0:02:01]} 15. Ne5 {[%emt 0:00:06]} b6 {[%emt 0:00:34]} 16. Bb1 {[%emt 0:
01:42]} Be6 {[%emt 0:02:26]} 17. Bf4 {[%emt 0:01:57]} f6 {[%emt 0:02:47]} 18.
Nc6 {[%emt 0:01:15]} Nxc6 {[%emt 0:01:50]} 19. Rxc6 {[%emt 0:00:02]} Bxf4 {
[%emt 0:00:00]} 20. Rxe6 {[%emt 0:00:02]} Rc8 {[%emt 0:00:18]} 21. g3 {[%emt 0:
00:15]} Bb8 {[%emt 0:00:22]} 22. Bf5 {[%emt 0:00:29]} Rc4 {[%emt 0:00:31]} 23.
Qd3 {[%emt 0:00:07]} Qc7 {[%emt 0:00:31]} 24. Qe3 {[%emt 0:00:39]} Qd8 {[%emt
0:02:49]} 25. Re1 {[%emt 0:00:07]} Bd6 {[%emt 0:00:02]} 26. Bd3 {[%emt 0:00:33]
} Rc7 {[%emt 0:01:02]} 27. Qf3 {[%emt 0:00:02]} 1-0

[Event "Aeroflot Open 2013"]
[Site "Moscow"]
[Date "2013.02.12"]
[Round "2.7"]
[White "Domogaev, Sergey"]
[Black "Le, Quang Liem"]
[Result "0-1"]
[ECO "A30"]
[WhiteElo "2510"]
[BlackElo "2705"]
[Annotator "Robot 4"]
[PlyCount "58"]
[EventDate "2013.??.??"]
[EventCountry "RUS"]
[TimeControl "900+10"]

1. Nf3 {[%emt 0:00:00]} Nf6 {[%emt 0:00:00]} 2. c4 {[%emt 0:00:02]} b6 {[%emt
0:00:00]} 3. g3 {[%emt 0:00:00]} Bb7 {[%emt 0:00:00]} 4. Bg2 {[%emt 0:00:00]}
c5 {[%emt 0:00:05]} 5. O-O {[%emt 0:00:04]} g6 {[%emt 0:00:04]} 6. Nc3 {[%emt
0:00:02]} Bg7 {[%emt 0:00:05]} 7. Re1 {[%emt 0:00:03]} d5 {[%emt 0:00:41]} 8.
d4 {[%emt 0:02:25]} O-O {[%emt 0:00:36]} 9. dxc5 {[%emt 0:00:19]} dxc4 {[%emt
0:01:52]} 10. Qxd8 {[%emt 0:01:39]} Rxd8 {[%emt 0:00:02]} 11. cxb6 {[%emt 0:00:
00]} axb6 {[%emt 0:00:02]} 12. Bf4 {[%emt 0:00:38]} Nd5 {[%emt 0:01:16]} 13.
Be5 {[%emt 0:02:32]} Nxc3 {[%emt 0:00:06]} 14. Bxc3 {[%emt 0:01:42]} Bxc3 {
[%emt 0:00:16]} 15. bxc3 {[%emt 0:00:02]} Ra3 {[%emt 0:00:49]} 16. Red1 {[%emt
0:00:14]} Rd6 {[%emt 0:03:08]} 17. Rxd6 {[%emt 0:00:23]} exd6 {[%emt 0:00:01]}
18. Rd1 {[%emt 0:01:22]} d5 {[%emt 0:00:39]} 19. e4 {[%emt 0:00:11]} Rxc3 {
[%emt 0:00:06]} 20. exd5 {[%emt 0:00:05]} Nd7 {[%emt 0:00:04]} 21. Nd4 {[%emt
0:00:47]} Ra3 {[%emt 0:01:51]} 22. Rd2 {[%emt 0:00:37]} Ra5 {[%emt 0:00:38]}
23. Rc2 {[%emt 0:01:36]} Rc5 {[%emt 0:00:01]} 24. Ne6 {[%emt 0:01:43]} Rb5 {
[%emt 0:00:59]} 25. Nc7 {[%emt 0:00:31]} Rb1+ {[%emt 0:00:11]} 26. Bf1 {[%emt
0:00:01]} b5 {[%emt 0:00:04]} 27. f4 {[%emt 0:00:08]} Nb6 {[%emt 0:00:10]} 28.
d6 {[%emt 0:00:29]} Be4 {[%emt 0:00:03]} 29. Rf2 {[%emt 0:00:39]} c3 {[%emt 0:
00:16]} 0-1

[Event "Aeroflot Open 2013"]
[Site "Moscow"]
[Date "2013.02.12"]
[Round "2.12"]
[White "Efimenko, Zahar"]
[Black "Reshetnikov, Alexey"]
[Result "1/2-1/2"]
[ECO "A11"]
[WhiteElo "2696"]
[BlackElo "2508"]
[Annotator "Robot 4"]
[PlyCount "81"]
[EventDate "2013.??.??"]
[EventCountry "RUS"]
[TimeControl "900+10"]

1. Nf3 {[%emt 0:00:00]} d5 {[%emt 0:00:00]} 2. g3 {[%emt 0:00:00]} Nf6 {[%emt
0:00:00]} 3. Bg2 {[%emt 0:00:00]} c6 {[%emt 0:00:00]} 4. c4 {[%emt 0:00:02]}
dxc4 {[%emt 0:00:42]} 5. O-O {[%emt 0:00:06]} Nbd7 {[%emt 0:00:04]} 6. Qc2 {
[%emt 0:00:08]} Nb6 {[%emt 0:00:06]} 7. a4 {[%emt 0:00:01]} a5 {[%emt 0:00:36]}
8. Na3 {[%emt 0:00:03]} g6 {[%emt 0:01:17]} 9. Nxc4 {[%emt 0:00:06]} Bg7 {
[%emt 0:01:02]} 10. d3 {[%emt 0:00:13]} O-O {[%emt 0:00:08]} 11. Nxb6 {[%emt 0:
00:10]} Qxb6 {[%emt 0:00:02]} 12. Be3 {[%emt 0:00:01]} Qc7 {[%emt 0:00:09]} 13.
Bd4 {[%emt 0:00:36]} Nd5 {[%emt 0:00:13]} 14. Bxg7 {[%emt 0:00:23]} Kxg7 {
[%emt 0:00:01]} 15. Rac1 {[%emt 0:00:08]} Nb4 {[%emt 0:00:43]} 16. Qc5 {[%emt
0:00:37]} f6 {[%emt 0:01:03]} 17. h3 {[%emt 0:01:56]} Qd6 {[%emt 0:00:14]} 18.
Nd2 {[%emt 0:00:32]} Qxc5 {[%emt 0:01:03]} 19. Rxc5 {[%emt 0:00:01]} Be6 {
[%emt 0:00:04]} 20. f4 {[%emt 0:00:38]} Rfd8 {[%emt 0:00:04]} 21. g4 {[%emt 0:
01:37]} b6 {[%emt 0:01:07]} 22. Rcc1 {[%emt 0:01:06]} Rac8 {[%emt 0:00:00]} 23.
f5 {[%emt 0:00:19]} Bf7 {[%emt 0:00:19]} 24. Nc4 {[%emt 0:00:34]} Rb8 {[%emt 0:
00:05]} 25. Be4 {[%emt 0:02:15]} g5 {[%emt 0:00:24]} 26. Kf2 {[%emt 0:00:32]}
h6 {[%emt 0:03:11]} 27. Nd2 {[%emt 0:00:18]} c5 {[%emt 0:00:07]} 28. Bf3 {
[%emt 0:01:02]} Rd4 {[%emt 0:00:18]} 29. b3 {[%emt 0:00:19]} h5 {[%emt 0:01:00]
} 30. Nc4 {[%emt 0:01:23]} h4 {[%emt 0:00:24]} 31. Rc3 {[%emt 0:00:42]} Kf8 {
[%emt 0:00:52]} 32. Rcc1 {[%emt 0:00:18]} Ke8 {[%emt 0:00:12]} 33. Rfd1 {[%emt
0:00:24]} Na2 {[%emt 0:00:44]} 34. Rc2 {[%emt 0:00:21]} Nb4 {[%emt 0:00:02]}
35. Rcd2 {[%emt 0:00:52]} Rd7 {[%emt 0:00:51]} 36. e3 {[%emt 0:00:11]} Bg8 {
[%emt 0:00:47]} 37. Be4 {[%emt 0:00:08]} Bf7 {[%emt 0:00:01]} 38. Ke2 {[%emt 0:
01:05]} Rdd8 {[%emt 0:00:13]} 39. Kf2 {[%emt 0:00:36]} Bg8 {[%emt 0:00:02]} 40.
Ke2 {[%emt 0:00:15]} Bf7 {[%emt 0:00:00]} 41. Kf2 {[%emt 0:00:24]} 1/2-1/2

[Event "Aeroflot Open 2013"]
[Site "Moscow"]
[Date "2013.02.12"]
[Round "1.5"]
[White "Firat, Burak"]
[Black "Kasimdzhanov, Rustam"]
[Result "0-1"]
[ECO "C91"]
[WhiteElo "2406"]
[BlackElo "2709"]
[Annotator "Robot 4"]
[PlyCount "68"]
[EventDate "2013.??.??"]
[EventCountry "RUS"]
[TimeControl "900+10"]

1. e4 {[%emt 0:00:00]} e5 {[%emt 0:00:00]} 2. Nf3 {[%emt 0:00:00]} Nc6 {[%emt
0:00:00]} 3. Bb5 {[%emt 0:00:00]} a6 {[%emt 0:00:02]} 4. Ba4 {[%emt 0:00:06]}
Nf6 {[%emt 0:00:00]} 5. O-O {[%emt 0:00:08]} Be7 {[%emt 0:00:08]} 6. Re1 {
[%emt 0:00:03]} b5 {[%emt 0:00:00]} 7. Bb3 {[%emt 0:00:02]} O-O {[%emt 0:00:02]
} 8. d4 {[%emt 0:01:06]} d6 {[%emt 0:00:51]} 9. c3 {[%emt 0:00:06]} Bg4 {[%emt
0:00:06]} 10. Be3 {[%emt 0:00:02]} exd4 {[%emt 0:00:43]} 11. cxd4 {[%emt 0:00:
04]} Na5 {[%emt 0:00:02]} 12. Bc2 {[%emt 0:00:02]} Nc4 {[%emt 0:00:03]} 13. Bc1
{[%emt 0:00:08]} c5 {[%emt 0:00:02]} 14. b3 {[%emt 0:01:14]} Nb6 {[%emt 0:00:
16]} 15. Nbd2 {[%emt 0:01:24]} Rc8 {[%emt 0:02:58]} 16. a4 {[%emt 0:00:15]}
bxa4 {[%emt 0:00:39]} 17. bxa4 {[%emt 0:00:02]} cxd4 {[%emt 0:00:50]} 18. h3 {
[%emt 0:00:55]} Bh5 {[%emt 0:00:24]} 19. Bb2 {[%emt 0:03:58]} d5 {[%emt 0:03:
35]} 20. e5 {[%emt 0:00:41]} Nfd7 {[%emt 0:00:07]} 21. g4 {[%emt 0:00:48]} Bg6
{[%emt 0:00:09]} 22. Bxg6 {[%emt 0:00:13]} fxg6 {[%emt 0:00:06]} 23. Nxd4 {
[%emt 0:00:31]} Nc5 {[%emt 0:00:15]} 24. Ra3 {[%emt 0:02:58]} Nc4 {[%emt 0:01:
21]} 25. Nxc4 {[%emt 0:00:51]} dxc4 {[%emt 0:00:02]} 26. Rc3 {[%emt 0:00:54]}
Nd3 {[%emt 0:02:02]} 27. Rxd3 {[%emt 0:00:29]} cxd3 {[%emt 0:00:02]} 28. Qb3+ {
[%emt 0:00:10]} Kh8 {[%emt 0:01:44]} 29. Ne6 {[%emt 0:00:02]} Rb8 {[%emt 0:00:
00]} 30. Qa2 {[%emt 0:00:26]} d2 {[%emt 0:01:34]} 31. Rd1 {[%emt 0:00:18]} Qd3
{[%emt 0:00:03]} 32. Nxf8 {[%emt 0:02:01]} Rxf8 {[%emt 0:00:22]} 33. e6 {[%emt
0:00:10]} Rxf2 {[%emt 0:01:23]} 34. Kxf2 {[%emt 0:00:18]} Bc5+ {[%emt 0:00:02]}
0-1